Cogmind - Beta 10.2 @@@ ROGUE MODE // 2021.05.17 @ 23:12:52 Player: Trantor Result: Destroyed by as-65700 with Assembled Blade Performance ------------- Evolutions (0) 0 Regions Visited (4) 800 Robots Destroyed (23) 115 Value Destroyed (413) 413 Prototype IDs (28) 560 Alien Tech Used (0) 0 Bonus (300) 300 TOTAL SCORE: 2188 Bonus ------- Aligned with FarCom 300 Cogmind --------- Core Integrity 0/250 Matter 300/300 Energy 250/250 System Corruption 0% Temperature Cool (0) Movement Walking (210) Ox3 Location -9/Mines Parts ------- > --- POWER (1) -------- Ion Engine > --- PROPULSION (2) --- Aluminum Leg Aluminum Leg > --- UTILITY (2) ------ High-capacity Storage Unit High-capacity Storage Unit > --- WEAPON (2) ------- (None) > --- INVENTORY (20) --- Aluminum Leg Large Storage Unit Large Storage Unit High-capacity Storage Unit High-capacity Matter Pod (200) Improved Sensor Array Experimental Sensor Array Propulsion Shielding Medium Armor Plating Shield Generator Hacking Suite Bomb Drone Bay Light EM Pulse Cannon Light EM Pulse Cannon Assault Rifle Assault Rifle Assault Rifle Field Lobotomy Kit Hammer Peak State ------------ > --- POWER ------------ Ion Engine > --- PROPULSION ------- Aluminum Leg Aluminum Leg > --- UTILITY ---------- High-capacity Storage Unit High-capacity Storage Unit > --- WEAPON ----------- Assault Rifle Light Assault Rifle > --- INVENTORY -------- Aluminum Leg Large Storage Unit Large Storage Unit Large Storage Unit High-capacity Storage Unit High-capacity Matter Pod Experimental Sensor Array Propulsion Shielding Medium Armor Plating Hacking Suite Bomb Drone Bay Light EM Pulse Cannon Light EM Pulse Cannon Assault Rifle Assault Rifle Assault Rifle Field Lobotomy Kit Hammer [Rating: 12] Favorites ----------- Power Ion Engine Engine Ion Engine Propulsion Aluminum Leg Treads Light Treads Leg Aluminum Leg Utility Large Storage Unit Storage Large Storage Unit Weapon Assault Rifle Energy Gun EM Pulse Gun Energy Cannon Light EM Pulse Cannon Ballistic Gun Assault Rifle Build | -11 -10 -10 -10 -9 ------- Run | Scr Mat Min Exi Min Slots Evolved . | . . . . . Power . | . . . . . Propulsion . | . . . . . Utility . | . . . . . Weapon . | . . . . . Parts Attached 27 | . 17 7 3 . Power 4 | . 3 1 . . Engine 4 | . 3 1 . . Core . | . . . . . Reactor . | . . . . . Propulsion 8 | . 5 3 . . Treads 4 | . 3 1 . . Leg 4 | . 2 2 . . Wheel . | . . . . . Hover . | . . . . . Flight . | . . . . . Utility 5 | . 2 . 3 . Device . | . . . . . Storage 5 | . 2 . 3 . Processor . | . . . . . Hackware . | . . . . . Protection . | . . . . . Artifact . | . . . . . Weapon 10 | . 7 3 . . Energy Gun . | . . . . . Energy Cannon 2 | . 2 . . . Ballistic Gun 8 | . 5 3 . . Ballistic Cannon . | . . . . . Launcher . | . . . . . Special Weapon . | . . . . . Impact Weapon . | . . . . . Slashing Weapon . | . . . . . Piercing Weapon . | . . . . . Special Melee Weapon . | . . . . . Unidentified Prototypes . | . . . . . Parts Lost 8 | . . 7 . 1 Power 1 | . . 1 . . Propulsion 3 | . . 3 . . Utility . | . . . . . Weapon 4 | . . 3 . 1 Highest Loss Streak 6 | . . 6 . 1 Average Slot Usage (%) 97 | . 94 98 100 97 Engine 13 | . 14 13 14 14 Treads 3 | . 7 2 . . Leg 24 | . 20 25 28 28 Storage 26 | . 23 28 28 28 Energy Cannon 1 | . 4 . . . Ballistic Gun 25 | . 22 27 28 26 Naked Turns . | . . . . . Heaviest Build 72 | 10 41 41 72 72 Greatest Support 40 | 20 40 40 20 20 Greatest Overweight (x) 3 | . 2 3 3 3 Average Overweight (x) 1 | . . 1 1 3 Largest Inventory Capacity 20 | . 16 16 20 20 Average Capacity 14 | . 12 16 16 20 Most Carried 20 | . 16 16 18 20 Average Carried 13 | . 11 12 15 19 Final Capacity 20 | 6 16 16 20 20 Final Carried 20 | 6 16 14 18 20 Class Distribution -------------------- 89% | Mutant 10% | Hauler-Mutant Dominant Class ---------------- Mutant | -10/Materials Mutant | -10/Mines Mutant | -10/Exiles Hauler-Mutant | -9/Mines Resources | -11 -10 -10 -10 -9 ----------- Run | Scr Mat Min Exi Min Matter Collected 975 | 200 396 349 . 30 Remotely . | . . . . . Salvage Created 702 | . 470 232 . . Parts 36 | . 30 6 . . Haulers Intercepted 2 | . 2 . . . Recyclers Shooed . | . . . . . Parts Field Recycled . | . . . . . Retrieved Matter . | . . . . . Parts Self-Destructed . | . . . . . Prevented . | . . . . . Kills | -11 -10 -10 -10 -9 ------- Run | Scr Mat Min Exi Min Combat Hostiles Destroyed 17 | . 12 5 . . Guns 14 | . 9 5 . . Cannons 1 | . 1 . . . AOE 2 | . 2 . . . Classes Destroyed 6 | . 5 1 . . Hauler 2 | . 2 . . . Recycler 1 | . . 1 . . Operator 1 | . 1 . . . Watcher 2 | . 2 . . . Swarmer 9 | . 6 3 . . Grunt 7 | . 6 1 . . Best Kill Streak 3 | . 3 3 . . Combat Bots Only 3 | . 3 3 . . Max Kills in Single Turn 2 | . 2 1 . . Gunslinging . | . . . . . Exploded 2 | . 2 . . . Melee . | . . . . . Uniques/NPCs Destroyed 1 | . . 1 . . YI-UF0 (-10/Mines) Combat | -11 -10 -10 -10 -9 -------- Run | Scr Mat Min Exi Min Damage Taken 1588 | . 389 909 . 290 Core 276 | . 70 135 . 71 Absorbed by Shields . | . . . . . Core Remaining (%) 100 | 100 . . . . Volleys Fired 79 | . 57 22 . . Largest 2 | . 2 2 . . Hottest 112 | . 112 40 . . Shots Fired 155 | . 114 41 . . Gun 144 | . 103 41 . . Cannon 11 | . 11 . . . Launcher . | . . . . . Special . | . . . . . Kinetic 138 | . 97 41 . . Thermal . | . . . . . Explosive . | . . . . . Electromagnetic 17 | . 17 . . . Robot Hit Streak 16 | . 16 7 . . Robot Miss Streak 5 | . 5 2 . . Penetration Max . | . . . . . Secondary Targets 3 | . 1 2 . . Max Gunslinging Chain 1 | . 1 1 . . Shots Hit Robots 100 | . 73 27 . . Core Hits 34 | . 24 10 . . Critical Hits . | . . . . . Critical Kills . | . . . . . Critical Parts Destroyed . | . . . . . Melee Attacks . | . . . . . Impact . | . . . . . Slashing . | . . . . . Piercing . | . . . . . Sneak Attacks . | . . . . . Combat Hostiles . | . . . . . Follow-up Attacks . | . . . . . Damage Inflicted 1339 | . 922 409 . 8 Guns 1086 | . 677 409 . . Cannons 112 | . 112 . . . Explosions 133 | . 133 . . . Melee . | . . . . . Ramming 8 | . . . . 8 Kinetic 1019 | . 610 409 . . Thermal 133 | . 133 . . . Explosive . | . . . . . Electromagnetic 179 | . 179 . . . Impact . | . . . . . Slashing . | . . . . . Piercing . | . . . . . Highest Corruption . | . . . . . Average Corruption . | . . . . . Corruption Purged . | . . . . . Overload Shots . | . . . . . Overflow Damage 24 | . 24 . . . Projectiles 24 | . 24 . . . Explosions . | . . . . . Melee . | . . . . . Knockbacks . | . . . . . Impact . | . . . . . Kinetic . | . . . . . Secondary . | . . . . . Self-Inflicted Damage 57 | . 53 . . 4 Shots 1 | . 1 . . . Rammed 1 | . . . . 1 Targets Rammed 1 | . . . . 1 Kicked . | . . . . . Crushed . | . . . . . Highest Temperature 120 | . 120 2 . 2 Average Temperature 48 | . 52 2 . 2 Received Heat Transfer 204 | . 111 33 . 60 Siege Activations . | . . . . . Robots Corrupted . | . . . . . Combat Hostiles . | . . . . . Parts Fried 1 | . 1 . . . Impact Corruptions . | . . . . . Robots Melted . | . . . . . Combat Hostiles . | . . . . . Parts Melted . | . . . . . Heat Transferred 200 | . 200 . . . Parts Sabotaged . | . . . . . Parts Stolen . | . . . . . Parts Stripped . | . . . . . Power Chain Reactions 2 | . 2 . . . Missiles Intercepted . | . . . . . Alert | -11 -10 -10 -10 -9 ------- Run | Scr Mat Min Exi Min Peak Influence 235 | . 235 75 . . Initial . | . . . . . Average 52 | . 89 22 . . Maximum Alert Level 1 | . 1 . . . Low Security (%) 91 | . 82 100 . 100 Level 1 8 | . 17 . . . Level 2 . | . . . . . Level 3 . | . . . . . Level 4 . | . . . . . Level 5 . | . . . . . High Security . | . . . . . Max Security . | . . . . . Squads Dispatched 1 | . 1 . . . Investigation . | . . . . . Extermination . | . . . . . Reinforcement 1 | . 1 . . . Assault . | . . . . . Garrison . | . . . . . Intercept . | . . . . . Construction Impeded . | . . . . . Haulers Reinforced . | . . . . . Stealth | -11 -10 -10 -10 -9 --------- Run | Scr Mat Min Exi Min Distress Signals 1 | . 1 . . . Communications Jammed . | . . . . . Distress Signals . | . . . . . Times Spotted 40 | . 22 6 . 12 Peak Tracking Total 13 | . 5 3 . 13 Tactical Retreats 2 | . . 1 . 1 Traps | -11 -10 -10 -10 -9 ------- Run | Scr Mat Min Exi Min Traps Triggered 1 | . 1 . . . Indirectly . | . . . . . Trap Hack Attempts . | . . . . . Triggered . | . . . . . Disarmed . | . . . . . Reprogrammed . | . . . . . Reused . | . . . . . Traps Extracted . | . . . . . Installed . | . . . . . Triggered . | . . . . . Machines | -11 -10 -10 -10 -9 ---------- Run | Scr Mat Min Exi Min Machines Disabled . | . . . . . Max in Single Turn . | . . . . . Machines Sabotaged . | . . . . . Garrisons Compromised . | . . . . . Overloaded Fab Kills . | . . . . . Fab Network Shutdowns . | . . . . . Hacking | -11 -10 -10 -10 -9 --------- Run | Scr Mat Min Exi Min Machines Accessed 11 | . 5 1 5 . Terminals 5 | . 5 . . . Fabricators . | . . . . . Repair Stations . | . . . . . Recycling Units . | . . . . . Scanalyzers . | . . . . . Garrison Access . | . . . . . Total Hacks 71 | . 20 1 50 . Successful 63 | . 12 1 50 . Failed 8 | . 8 . . . Catastrophic 2 | . 2 . . . Database Lockouts . | . . . . . Manual 19 | . 18 . 1 . Terminals 20 | . 20 . . . Fabricators . | . . . . . Repair Stations . | . . . . . Recycling Units . | . . . . . Scanalyzers . | . . . . . Garrison Access . | . . . . . Terminal Hacks 62 | . 11 1 50 . Record 49 | . . . 49 . Robot Analysis 2 | . 2 . . . Prototype ID Bank 5 | . 5 . . . Open Door 1 | . . 1 . . Alert Level 1 | . 1 . . . Unreport Threat 1 | . 1 . . . Maintenance Status 1 | . 1 . . . Hauler Manifests 1 | . 1 . . . EX-Prototype ID Bank 1 | . . . 1 . Fabricator Hacks . | . . . . . Repair Station Hacks . | . . . . . Recycling Unit Hacks . | . . . . . Scanalyzer . | . . . . . Garrison Access Hacks . | . . . . . Unauthorized Hacks 1 | . 1 . . . Terminals 1 | . 1 . . . Botnet 1 | . 1 . . . Fabricators . | . . . . . Repair Stations . | . . . . . Recycling Units . | . . . . . Scanalyzers . | . . . . . Garrison Access . | . . . . . Data Cores Recovered . | . . . . . Used . | . . . . . Hacking Detections 4 | . 4 . . . Full Trace Events 1 | . 1 . . . Feedback Events . | . . . . . Feedback Blocked . | . . . . . Robot Schematics Acquired . | . . . . . Robots Built . | . . . . . Matter . | . . . . . Time . | . . . . . Total Robot Build Rating . | . . . . . Part Schematics Acquired . | . . . . . Parts Built . | . . . . . Matter . | . . . . . Time . | . . . . . Total Part Build Rating . | . . . . . Parts Repaired . | . . . . . Time . | . . . . . Parts Recycled . | . . . . . Recycled Matter . | . . . . . Retrieved Matter . | . . . . . Retrieved Components . | . . . . . Parts Scanalyzed . | . . . . . Part Schematics Acquired . | . . . . . Parts Damaged . | . . . . . Bothacking | -11 -10 -10 -10 -9 ------------ Run | Scr Mat Min Exi Min Used RIF Installer . | . . . . . Robots Hacked . | . . . . . Non-combat . | . . . . . Combat . | . . . . . Robot Hacks Applied . | . . . . . Relay Couplers Released . | . . . . . Robots Rewired . | . . . . . Allies Hacked . | . . . . . Hacks Repelled . | . . . . . Allies | -11 -10 -10 -10 -9 -------- Run | Scr Mat Min Exi Min Total Allies . | . . . . . Largest Group . | . . . . . Highest-Rated Group . | . . . . . Highest-Rated Ally . | . . . . . Total Orders . | . . . . . Ally Attacks . | . . . . . Total Damage . | . . . . . Kills . | . . . . . Allies Corrupted . | . . . . . Allies Melted . | . . . . . Intel | -11 -10 -10 -10 -9 ------- Run | Scr Mat Min Exi Min Robot Analysis Total 2 | . 2 . . . Derelict Logs Recovered 1 | . . 1 . . Drone Launches . | . . . . . Drone Recoveries . | . . . . . Exploration | -11 -10 -10 -10 -9 ------------- Run | Scr Mat Min Exi Min Turns Passed 4252 | . 1641 1354 900 357 Spaces Moved 2480 | 1 941 799 578 161 Core . | . . . . . Treads 256 | . 221 35 . . Legs 2224 | 1 720 764 578 161 Wheels . | . . . . . Hover . | . . . . . Flight . | . . . . . Fastest Speed 120 | 120 120 150 150 210 Average Speed 156 | 120 147 157 154 210 Slowest Speed 210 | 120 200 210 210 210 Overloaded Moves . | . . . . . Propulsion Burnouts . | . . . . . Robots Hopped . | . . . . . Cave-ins Triggered . | . . . . . Exploration Rate (%) 63 | 2 94 99 93 27 Regions Visited 4 Branch Regions 3 Pre-discovered Areas 1 | . . . 1 . Known Exits Taken . | . . . . . Unknown Exits Taken 4 | 1 1 1 1 . Scrap Searched 3 | . . 2 . 1 Spaces Dug . | . . . . . Terrain Destroyed 9 | . 9 . . . Melee . | . . . . . Projectile . | . . . . . AOE 9 | . 9 . . . Terrain Rammed . | . . . . . Walls Destroyed . | . . . . . Machines Disabled . | . . . . . Actions | -11 -10 -10 -10 -9 --------- Run | Scr Mat Min Exi Min Total 2718 | . 1099 855 583 181 Wait 79 | . 45 21 . 13 Move 2476 | . 940 798 577 161 Hop . | . . . . . Pick Up 28 | . 17 5 2 4 Fast Attach 8 | . 7 1 . . Attach 7 | . 1 6 . . Detach 2 | . 2 . . . Swap 12 | . 9 . 3 . Drop 26 | . 21 2 1 2 Fire 79 | . 57 22 . . Melee . | . . . . . Ram . | . . . . . Kick 1 | . . . . 1 Crush . | . . . . . Escape Stasis . | . . . . . Rewire . | . . . . . Trap . | . . . . . Miscellaneous . | . . . . . Route ------- -11/Scrapyard -10/Materials (discovered 5 exits: [*Mat x3] / *Min x2) -10/Mines (discovered 3 exits: [*Mat x2] / *Exi) -10/Exiles (discovered 2 exits: [*Min x2]) -9/Mines (discovered 1 exit: [*Mat]) History --------- Turn | Location | Event 1 | -11/Scrapyard | Discovered new exit (range 0) 1 | -11/Scrapyard | Entered Materials 303 | -10/Materials | Build established: Mutant 427 | -10/Materials | Discovered new exit (range 13) 484 | -10/Materials | Discovered new exit (range 16) 800 | -10/Materials | Discovered new exit (range 9) 926 | -10/Materials | Discovered new exit (range 9) 1251 | -10/Materials | Discovered new exit (range 13) 1642 | -10/Materials | Entered Mines 1750 | -10/Mines | Core integrity fell below 50% 1756 | -10/Mines | Core integrity fell below 20% 1758 | -10/Mines | Destroyed YI-UF0 1786 | -10/Mines | Lost 6 parts (1p3n2w) 1986 | -10/Mines | Discovered new exit (range 8) 2285 | -10/Mines | Found the Drone Emporium 2299 | -10/Mines | Found Prototype Device 2387 | -10/Mines | Found a damaged Exp. Sensor Array with a note attached 2390 | -10/Mines | Found Prototype Device 2542 | -10/Mines | Discovered new exit (range 6) 2585 | -10/Mines | Deemed a non-threat by the Exiles lab entrance 2587 | -10/Mines | Discovered new exit (range 5) 2764 | -10/Mines | Learned location of 1 exit from Materials 2996 | -10/Mines | Entered Exiles 3017 | -10/Exiles | Discovered new exit (range 15) 3062 | -10/Exiles | Met 8R-AWN 3086 | -10/Exiles | Met EX-HEX 3148 | -10/Exiles | Met EX-DEC 3161 | -10/Exiles | Learned location of Zion (-6) 3194 | -10/Exiles | Met EX-BIN 3301 | -10/Exiles | Aligned with FarCom system 3302 | -10/Exiles | Given EX-Vault access code 3353 | -10/Exiles | Opened EX-Vault 3367 | -10/Exiles | Found Field Lobotomy Kit 3399 | -10/Exiles | Warned to stay clear of 0b10 Research branches 3558 | -10/Exiles | Visited The Gauntlet 3873 | -10/Exiles | Discovered new exit (range 12) 3896 | -10/Exiles | Left Exiles lab with Field Lobotomy Kit 3896 | -10/Exiles | Entered Mines 3970 | -9/Mines | Discovered new exit (range 11) 4093 | -9/Mines | Build established: Hauler-Mutant 4204 | -9/Mines | Assembled infested the area 4209 | -9/Mines | Assisted by a Guerilla fighting off Assembled 4253 | -9/Mines | Destroyed by as-65700 with Assembled Blade Last Messages --------------- 04118_ Found Shield Generator. 04118_ Found 24 Matter. 04126_ Dropped Lrg. Storage Unit. 04127_ Acquired Shield Generator. 04154_ R-06 Scavenger collects Lrg. Storage Unit. 04165_ Slammed into R-06 Scavenger. 04166_ K-01 Serf collects debris. 04204_ ALERT: Infestation in the mines, dispatching Demolisher response squad. 04205_ K-01 Serf destroyed. 04208_ X9-HPY(h): "I'll hold them off! Go on ahead or try to find another way!" 04208_ R-06 Scavenger suffers critical hit. 04209_ A derelict emerges from the shadows: "You need to get out of here! I've been tracking a group of Assembled to figure out where they're coming from, and they're closing on this area, come on!" 04209_ K-01 Serf destroyed. 04211_ R-06 Scavenger destroyed. 04212_ HV Slug penetrates Wall. 04224_ Assault Rifle destroyed. 04231_ Lgt. Assault Rifle severed. 04239_ Knocked back. Map ----- +----------------------------------------------------+ | ????????????????????????????????????????? | | ????????????????????????????????????????? | | ????????????????????????????????????????? | | ?###????????????????????????????????????? | | ## ##??????????????????????????????????? | | # ??????????????????????????????????? | | ??????????????????????????????????? | | %=??????????????????????????????????? | | ? %??????????????????????????????????? | | ?? ??????????????????????????????????? | | ?? ##????????????????????????????????? | | ??? ##???????????????????????????????? | | ???? #???????????????????????????????? | | ????# #??????????????????????##???????? | | ?????"! #???????????????????### ???????? | | ?????#% #??????????????????? ??????? | | ???###*=#??????????????????? ???????? | | #### ###?????????????????# < ???????? | | ##????????????????# ????????? | | #????????????????# ????????? | | ### """ #????????????????# ##?##????? | | ??# """ ##???????????????# ?? #????? | | ?## """ #??????????####?# ##? #????? | | ## ####??????## ### ## ##???? | | # #??????# ## ##??? | | # ### #####??# @ ##?? | | ## # ####?# [ #??# a #?? | | ?##### #????##### #?##a #?? | | ??#### #?????#### ### a ##?? | | ??# #?????# aa = ###??? | | ??# #####?????# ####### %## ##????? | | ?## #?????????#???????### #### ##????? | | ?# #???????????????????####??## ##???? | | #??????????????????????????## #???? | | ##???????????????????????????# #???? | | ###?????????????????????????????# ###???? | | ????????????????????????????????# #?????? | | ????????????????????????????????# #?????? | | ???????????????????????????###### #?????? | | ???????????????????????????# #?????? | | ???????????????????????????# ######?????? | | ???????????????????????????# #??????????? | | ???????????????????????????# #??????????? | | ??????????????????????????## ########???? | | ??????????????????????????# #???? | | ??????????????????????????# #???? | | ??????????????????????????# #???? | | ??????????????????????????# """ #???? | | ??????????????????????????# """ #???? | | ??????????????????????????# """ #???? | +----------------------------------------------------+ Best States ------------- Heat Dissipation 25 Energy Generation 10 Energy Capacity 250 Matter Stores 300 Matter Capacity 300 Sight Range 16 Terrain Scan Density 10 Evasion (%) 40 Recoil Reduction 2 Item Schematics ----------------- None Robot Schematics ------------------ None Fabricated ------------ Nothing Alien Tech Used ----------------- None Achievements -------------- None Challenges ------------ None Game ------ Seed ShadeSigixWarhead Manual? 0 Play Time 00:27:55 Cumulative 109.9 hours Start 2021.05.17 @ 21:51:08 End 2021.05.17 @ 23:12:52 Sessions 2 Manual Loads 0 Difficulty Rogue Special Mode None Game No. 72 Rogue 47 Adventurer 25 Explorer 0 Win Type - Total 0 Types 0/0/0/0/0/0/0/0/0 Lore% 39 Gallery% 39 Achievement% 34 Wizard Run 0 Options --------- ASCII 0 Keyboard 1 Movement Vi Keybinds 1 Fullscreen 2 Font 14/SmallcapsGlow Map View 84x54 Tactical HUD 1 Map Filters NONE Filters NONE Steam 1 RUN: 55ec04ba-e8f6-490d-8c95-3797deaf68e6